[Event "Biel Master Tournament 2019"]
[Site "Biel"]
[Date "2019.07.26"]
[Round "5.4"]
[White "Donchenko, Alexander"]
[Black "Gukesh D"]
[Result "1-0"]
[ECO "B38"]
[WhiteElo "2615"]
[BlackElo "2520"]
[Annotator "RC"]
[PlyCount "83"]
[EventDate "2019.07.20"]
[EventType "swiss"]
[EventCountry "SUI"]
[SourceTitle "playchess.com"]
[Source "ChessBase"]
[SourceQuality "1"]
[TimeControl "40/5400+30:1800+30"]

1. c4 {[%emt 0:00:00]} c5 {[%emt 0:00:11]} 2. Nf3 {[%emt 0:00:00]} g6 {[%emt 0:01:01]} 3. d4 {[%emt 0:00:47]} cxd4 {[%emt 0:00:33]} 4. Nxd4 {[%emt 0:00:07]} Bg7 {[%emt 0:00:08]} 5. e4 {[%emt 0:00:36]} Nc6 {[%emt 0:03:02]} 6. Be3 {[%emt 0:00:36]} Nf6 {[%emt 0:02:39]} 7. Nc3 {[%emt 0:00:24]} d6 {[%emt 0:01:29]} 8. Be2 {[%emt 0:01:18]} O-O {[%emt 0:01:58]} 9. O-O {[%emt 0:00:21]} Nxd4 {[%emt 0:06:45]} 10. Bxd4 {[%emt 0:00:28]} Bd7 {[%emt 0:00:05]} 11. h3 {[%emt 0:06:12]} Bc6 {[%emt 0:01:59]} 12. Qc2 {[%emt 0:02:56]} a5 {[%emt 0:12:38]} 13. Rad1 {[%emt 0:03:58]} Nd7 {[%emt 0:01:01]} 14. Bxg7 {[%emt 0:00:17]} Kxg7 {[%emt 0:00:08]} 15. Bg4 {[%emt 0:00:04]} Ne5 {[%emt 0:21:49]} 16. c5 {[%emt 0:01:03]} b5 {[%emt 0:06:23]} 17. cxd6 {[%emt 0:16:27]} exd6 {[%emt 0:00:30]} 18. b3 {[%emt 0:13:23]} Qb6 {[%emt 0:11:30]} 19. Rxd6 {[%emt 0:04:45]} Qc5 {[%emt 0:03:11]} 20. Rd2 {[%emt 0:00:35]} b4 {[%emt 0:07:46]} 21. Nd5 {[%emt 0:00:26]} Qxc2 {[%emt 0:00:11]} 22. Rxc2 {[%emt 0:00:06]} Rfd8 {[%emt 0:02:59]} 23. Be2 {[%emt 0:04:41]} Bxd5 {[%emt 0:03:45]} 24. exd5 {[%emt 0:00:19]} Rac8 {[%emt 0:04:10]} 25. Rxc8 {[%emt 0:05:18]} Rxc8 {[%emt 0:00:01]} 26. Rd1 {[%emt 0:03:49]} Kf6 {[%emt 0:02:42]} 27. f4 {[%emt 0:05:49]} Nd7 {[%emt 0:00:04]} 28. d6 {[%emt 0:00:14]} Rd8 {[%emt 0:02:11]} 29. Bb5 {[%emt 0:07:44]} Nc5 {[%emt 0:01:58]} 30. d7 {[%emt 0:04:10]} Ke7 {[%emt 0:01:29]} 31. Re1+ {[%emt 0:00:32]} Ne6 {[%emt 0:00:42]} 32. Kf2 {[%emt 0:01:25]} Kd6 {[%emt 0:00:13]} 33. g3 {[%emt 0:02:52]} Kc5 {[%emt 0:00:38]} 34. Ba4 {[%emt 0:01:18]} Kd6 {[%emt 0:00:14]} 35. Rd1+ {[%emt 0:00:29]} Ke7 {[%emt 0:00:25]} 36. Rd5 {[%emt 0:00:54]} Ra8 {[%emt 0:00:20]} 37. Ke3 {[%emt 0:03:51]} Kd8 {[%emt 0:00:04]} 38. g4 {[%emt 0:02:33]} f6 {[%emt 0:00:52]} 39. h4 {[%emt 0:02:41]} Nc7 {[%emt 0:00:14]} 40. Rc5 {[%emt 0:02:00]} Ra6 {[%emt 0:00:24]} 41. f5 {[%emt 0:31:15]} gxf5 {[%emt 0:30:42]} 42. Rxf5 {[%emt 0:00:00]} 1-0

[Event "Biel Master Tournament 2019"]
[Site "Biel"]
[Date "2019.07.26"]
[Round "5.9"]
[White "Loeffler, Markus"]
[Black "Gopal G.N."]
[Result "0-1"]
[ECO "B90"]
[WhiteElo "2339"]
[BlackElo "2594"]
[Annotator "ChessBase"]
[PlyCount "78"]
[EventDate "2019.07.20"]
[EventType "swiss"]
[EventCountry "SUI"]
[SourceTitle "playchess.com"]
[Source "ChessBase"]
[SourceQuality "1"]
[TimeControl "40/5400+30:1800+30"]

1. e4 {[%emt 0:06:10]} c5 {[%emt 0:00:00]} 2. Nf3 {[%emt 0:00:14]} d6 {[%emt 0:00:00]} 3. d4 {[%emt 0:00:05]} cxd4 {[%emt 0:00:00]} 4. Nxd4 {[%emt 0:00:06]} Nf6 {[%emt 0:00:00]} 5. Nc3 {[%emt 0:00:05]} a6 {[%emt 0:00:00]} 6. h3 {[%emt 0:00:32]} e5 {[%emt 0:00:18]} 7. Nde2 {[%emt 0:00:13]} h5 {[%emt 0:00:39]} 8. Bg5 {[%emt 0:00:22]} Be6 {[%emt 0:00:23]} 9. Bxf6 {[%emt 0:00:28]} Qxf6 {[%emt 0:00:05]} 10. Nd5 {[%emt 0:00:25]} Qd8 {[%emt 0:00:04]} 11. Qd3 {[%emt 0:01:13]} Nd7 {[%emt 0:00:53]} 12. Nec3 {[%emt 0:00:38]} g6 {[%emt 0:02:35]} 13. O-O-O {[%emt 0:00:19]} Nc5 {[%emt 0:15:47]} 14. Qe2 {[%emt 0:02:48]} Bh6+ {[%emt 0:06:00]} 15. Kb1 {[%emt 0:00:15]} b5 {[%emt 0:04:28]} 16. a3 {[%emt 0:02:07]} Kf8 {[%emt 0:06:45]} 17. h4 {[%emt 0:02:31]} Rb8 {[%emt 0:02:57]} 18. f3 {[%emt 0:02:18]} Bd7 {[%emt 0:06:23]} 19. g4 {[%emt 0:05:24]} hxg4 {[%emt 0:07:28]} 20. fxg4 {[%emt 0:00:16]} Bg5 {[%emt 0:08:22]} 21. h5 {[%emt 0:02:45]} Kg7 {[%emt 0:00:03]} 22. Qf3 {[%emt 0:05:45]} a5 {[%emt 0:05:44]} 23. b4 {[%emt 0:00:29]} axb4 {[%emt 0:00:07]} 24. axb4 {[%emt 0:00:08]} Ne6 {[%emt 0:01:30]} 25. Be2 {[%emt 0:38:23]} Bc6 {[%emt 0:04:23]} 26. Kb2 {[%emt 0:04:47]} Rb7 {[%emt 0:12:37]} 27. Qf2 {[%emt 0:03:43]} Nf4 {[%emt 0:03:25]} 28. Rh2 {[%emt 0:07:25]} Bxd5 {[%emt 0:03:09]} 29. exd5 {[%emt 0:05:38]} gxh5 {[%emt 0:01:38]} 30. gxh5 {[%emt 0:00:18]} f5 {[%emt 0:00:18]} 31. h6+ {[%emt 0:02:48]} Rxh6 {[%emt 0:02:47]} 32. Bd3 {[%emt 0:01:50]} Qf6 {[%emt 0:02:42]} 33. Rxh6 {[%emt 0:01:27]} Bxh6 {[%emt 0:00:18]} 34. Kb3 {[%emt 0:01:35]} e4 {[%emt 0:04:04]} 35. Bxb5 {[%emt 0:00:25]} Re7 {[%emt 0:00:29]} 36. Ne2 {[%emt 0:00:52]} Nxe2 {[%emt 0:00:39]} 37. Qxe2 {[%emt 0:00:20]} Kf8 {[%emt 0:00:34]} 38. Rg1 {[%emt 0:01:42]} Bg7 {[%emt 0:00:25]} 39. Rxg7 {[%emt 0:02:04]} Kxg7 {[%emt 0:00:21]} 0-1

[Event "Biel Master Tournament 2019"]
[Site "Biel"]
[Date "2019.07.26"]
[Round "5.11"]
[White "Morawietz, Dieter"]
[Black "Aryan, Chopra"]
[Result "1/2-1/2"]
[ECO "D85"]
[WhiteElo "2405"]
[BlackElo "2553"]
[Annotator "ChessBase"]
[PlyCount "75"]
[EventDate "2019.07.20"]
[EventType "swiss"]
[EventCountry "SUI"]
[SourceTitle "playchess.com"]
[Source "ChessBase"]
[SourceQuality "1"]
[TimeControl "40/5400+30:1800+30"]

1. d4 {[%emt 0:00:00]} Nf6 {[%emt 0:00:00]} 2. c4 {[%emt 0:00:00]} g6 {[%emt 0:00:00]} 3. Nc3 {[%emt 0:00:00]} d5 {[%emt 0:00:00]} 4. cxd5 {[%emt 0:00:02]} Nxd5 {[%emt 0:00:00]} 5. e4 {[%emt 0:00:16]} Nxc3 {[%emt 0:00:02]} 6. bxc3 {[%emt 0:00:06]} Bg7 {[%emt 0:00:04]} 7. Be3 {[%emt 0:00:17]} c5 {[%emt 0:00:28]} 8. Rc1 {[%emt 0:00:14]} Qa5 {[%emt 0:01:11]} 9. Qd2 {[%emt 0:00:11]} cxd4 {[%emt 0:01:18]} 10. cxd4 {[%emt 0:00:08]} Qxd2+ {[%emt 0:00:04]} 11. Bxd2 {[%emt 0:03:48]} O-O {[%emt 0:00:15]} 12. Nf3 {[%emt 0:00:17]} Bg4 {[%emt 0:04:17]} 13. d5 {[%emt 0:01:17]} Nd7 {[%emt 0:05:23]} 14. Ng5 {[%emt 0:12:06]} Nf6 {[%emt 0:11:59]} 15. h3 {[%emt 0:01:35]} Bd7 {[%emt 0:00:54]} 16. Bd3 {[%emt 0:00:11]} h6 {[%emt 0:08:53]} 17. Nf3 {[%emt 0:00:07]} e6 {[%emt 0:00:07]} 18. Rc7 {[%emt 0:12:25]} Rfd8 {[%emt 0:02:38]} 19. Rxb7 {[%emt 0:00:50]} exd5 {[%emt 0:03:01]} 20. e5 {[%emt 0:09:19]} Ne4 {[%emt 0:00:29]} 21. Be3 {[%emt 0:00:05]} Bf8 {[%emt 0:07:39]} 22. Rb2 {[%emt 0:20:47]} Nc5 {[%emt 0:12:50]} 23. Be2 {[%emt 0:07:31]} Rab8 {[%emt 0:03:50]} 24. Rxb8 {[%emt 0:01:03]} Rxb8 {[%emt 0:03:13]} 25. O-O {[%emt 0:01:21]} Rb2 {[%emt 0:00:39]} 26. Rc1 {[%emt 0:01:31]} Rxe2 {[%emt 0:06:45]} 27. Bxc5 {[%emt 0:00:07]} Rxa2 {[%emt 0:00:09]} 28. Be3 {[%emt 0:07:28]} a5 {[%emt 0:03:28]} 29. Rc7 {[%emt 0:00:24]} Be6 {[%emt 0:02:08]} 30. Nd4 {[%emt 0:00:53]} a4 {[%emt 0:10:56]} 31. Nxe6 {[%emt 0:04:11]} fxe6 {[%emt 0:00:06]} 32. Rc8 {[%emt 0:00:05]} Kf7 {[%emt 0:02:54]} 33. Rc7+ {[%emt 0:00:07]} Ke8 {[%emt 0:00:20]} 34. Rc8+ {[%emt 0:00:07]} Kf7 {[%emt 0:00:11]} 35. Rc7+ {[%emt 0:00:06]} Kg8 {[%emt 0:01:11]} 36. Rc8 {[%emt 0:00:05]} Ra1+ {[%emt 0:00:52]} 37. Kh2 {[%emt 0:00:07]} Kf7 {[%emt 0:01:05]} 38. Rc7+ {[%emt 0:00:07]} 1/2-1/2

[Event "Biel Master Tournament 2019"]
[Site "Biel"]
[Date "2019.07.26"]
[Round "5.12"]
[White "Puranik, Abhimanyu"]
[Black "Harika, Dronavalli"]
[Result "1/2-1/2"]
[ECO "C42"]
[WhiteElo "2550"]
[BlackElo "2425"]
[Annotator "ChessBase"]
[PlyCount "51"]
[EventDate "2019.07.20"]
[EventType "swiss"]
[EventCountry "SUI"]
[SourceTitle "playchess.com"]
[Source "ChessBase"]
[SourceQuality "1"]
[TimeControl "40/5400+30:1800+30"]

1. e4 {[%emt 0:00:00]} e5 {[%emt 0:01:50]} 2. Nf3 {[%emt 0:00:00]} Nf6 {[%emt 0:00:09]} 3. Nxe5 {[%emt 0:00:47]} d6 {[%emt 0:00:25]} 4. Nf3 {[%emt 0:00:18]} Nxe4 {[%emt 0:00:15]} 5. Nc3 {[%emt 0:00:15]} Nf6 {[%emt 0:00:17]} 6. d4 {[%emt 0:00:26]} Be7 {[%emt 0:00:13]} 7. Bd3 {[%emt 0:03:11]} O-O {[%emt 0:00:50]} 8. h3 {[%emt 0:00:27]} Re8 {[%emt 0:03:35]} 9. O-O {[%emt 0:00:50]} b6 {[%emt 0:00:10]} 10. d5 {[%emt 0:13:17]} a6 {[%emt 0:03:38]} 11. a4 {[%emt 0:10:38]} Bb7 {[%emt 0:02:37]} 12. Re1 {[%emt 0:07:15]} Nbd7 {[%emt 0:02:35]} 13. Bc4 {[%emt 0:00:46]} Bf8 {[%emt 0:03:42]} 14. Be3 {[%emt 0:00:34]} Ne5 {[%emt 0:04:50]} 15. Bf1 {[%emt 0:04:45]} g6 {[%emt 0:07:52]} 16. Bg5 {[%emt 0:04:46]} h6 {[%emt 0:04:10]} 17. Bh4 {[%emt 0:02:38]} Bg7 {[%emt 0:03:47]} 18. Nxe5 {[%emt 0:08:48]} dxe5 {[%emt 0:02:42]} 19. Bc4 {[%emt 0:00:46]} Qd7 {[%emt 0:11:02]} 20. Bg3 {[%emt 0:12:09]} Nh5 {[%emt 0:03:43]} 21. Bh2 {[%emt 0:00:16]} Kh7 {[%emt 0:04:29]} 22. Qd2 {[%emt 0:06:01]} f5 {[%emt 0:00:34]} 23. Rad1 {[%emt 0:00:16]} Rad8 {[%emt 0:01:54]} 24. Qe2 {[%emt 0:01:23]} Qc8 {[%emt 0:02:06]} 25. Rd2 {[%emt 0:01:19]} e4 {[%emt 0:05:14]} 26. Red1 {[%emt 0:04:17]} 1/2-1/2

[Event "Biel Master Tournament 2019"]
[Site "Biel"]
[Date "2019.07.26"]
[Round "5.13"]
[White "Erigaisi Arjun"]
[Black "Mittal, Aditya"]
[Result "1-0"]
[ECO "A14"]
[WhiteElo "2531"]
[BlackElo "2429"]
[Annotator "ChessBase"]
[PlyCount "117"]
[EventDate "2019.07.20"]
[EventType "swiss"]
[EventCountry "SUI"]
[SourceTitle "playchess.com"]
[Source "ChessBase"]
[SourceQuality "1"]
[TimeControl "40/5400+30:1800+30"]

1. Nf3 {[%emt 0:00:00]} d5 {[%emt 0:00:00]} 2. e3 {[%emt 0:00:14]} Nf6 {[%emt 0:03:05]} 3. c4 {[%emt 0:00:20]} e6 {[%emt 0:02:08]} 4. b3 {[%emt 0:00:28]} c5 {[%emt 0:03:33]} 5. Bb2 {[%emt 0:00:12]} Nc6 {[%emt 0:00:29]} 6. g3 {[%emt 0:01:13]} Be7 {[%emt 0:01:46]} 7. Bg2 {[%emt 0:00:10]} O-O {[%emt 0:00:34]} 8. O-O {[%emt 0:00:09]} b6 {[%emt 0:03:00]} 9. Nc3 {[%emt 0:00:28]} Bb7 {[%emt 0:01:21]} 10. cxd5 {[%emt 0:01:02]} exd5 {[%emt 0:05:17]} 11. d4 {[%emt 0:00:16]} Re8 {[%emt 0:01:19]} 12. Rc1 {[%emt 0:02:10]} Rc8 {[%emt 0:10:15]} 13. Re1 {[%emt 0:07:41]} Bf8 {[%emt 0:01:30]} 14. Ne2 {[%emt 0:06:39]} Ne4 {[%emt 0:05:24]} 15. Nf4 {[%emt 0:08:08]} cxd4 {[%emt 0:07:54]} 16. Nxd4 {[%emt 0:00:23]} Ne5 {[%emt 0:00:42]} 17. Rxc8 {[%emt 0:06:07]} Qxc8 {[%emt 0:01:07]} 18. h3 {[%emt 0:02:34]} Qd7 {[%emt 0:03:35]} 19. Qa1 {[%emt 0:03:31]} Ng6 {[%emt 0:03:24]} 20. Nde2 {[%emt 0:05:28]} Qf5 {[%emt 0:04:47]} 21. Rd1 {[%emt 0:01:51]} Bc5 {[%emt 0:05:56]} 22. Bd4 {[%emt 0:01:47]} Bf8 {[%emt 0:07:06]} 23. h4 {[%emt 0:03:10]} Qc8 {[%emt 0:04:57]} 24. Qb2 {[%emt 0:06:13]} Ne7 {[%emt 0:02:38]} 25. Bh3 {[%emt 0:02:18]} Qc6 {[%emt 0:05:32]} 26. Rc1 {[%emt 0:01:32]} Qh6 {[%emt 0:00:35]} 27. Rc7 {[%emt 0:00:46]} Bc8 {[%emt 0:01:39]} 28. Bxc8 {[%emt 0:01:53]} Rxc8 {[%emt 0:02:46]} 29. Rxc8 {[%emt 0:00:54]} Nxc8 {[%emt 0:00:02]} 30. Nxd5 {[%emt 0:00:40]} Qh5 {[%emt 0:01:17]} 31. Ndf4 {[%emt 0:01:11]} Qf3 {[%emt 0:01:54]} 32. Nc3 {[%emt 0:00:08]} Nxc3 {[%emt 0:00:50]} 33. Bxc3 {[%emt 0:01:03]} Nd6 {[%emt 0:00:30]} 34. Qe2 {[%emt 0:00:28]} Qc6 {[%emt 0:00:18]} 35. Bb4 {[%emt 0:00:36]} Ne4 {[%emt 0:03:03]} 36. Bxf8 {[%emt 0:00:34]} Kxf8 {[%emt 0:00:08]} 37. Qd3 {[%emt 0:00:27]} Ke8 {[%emt 0:02:05]} 38. Qd4 {[%emt 0:02:08]} f6 {[%emt 0:02:41]} 39. Qd1 {[%emt 0:03:04]} Ke7 {[%emt 0:03:08]} 40. Ne2 {[%emt 0:03:20]} Nc3 {[%emt 0:01:11]} 41. Nxc3 {[%emt 0:30:17]} Qxc3 {[%emt 0:30:03]} 42. Kg2 {[%emt 0:00:27]} g6 {[%emt 0:00:00]} 43. Qd5 {[%emt 0:00:00]} Qc8 {[%emt 0:00:00]} 44. Qe4+ {[%emt 0:00:00]} Kf8 {[%emt 0:00:00]} 45. Qb4+ {[%emt 0:00:00]} Ke8 {[%emt 0:00:00]} 46. Qa4+ {[%emt 0:00:00]} Kf8 {[%emt 0:00:00]} 47. Qxa7 {[%emt 0:00:00]} Qc6+ {[%emt 0:00:00]} 48. Kh2 {[%emt 0:00:00]} Kg8 {[%emt 0:00:00]} 49. Qa4 {[%emt 0:00:00]} b5 {[%emt 0:00:00]} 50. Qf4 {[%emt 0:00:00]} Qc2 {[%emt 0:00:00]} 51. Qxf6 {[%emt 0:00:00]} Qxa2 {[%emt 0:00:00]} 52. Qe6+ {[%emt 0:00:00]} Kg7 {[%emt 0:00:00]} 53. Kg2 {[%emt 0:00:00]} Qa8+ {[%emt 0:00:00]} 54. e4 {[%emt 0:00:00]} Qb7 {[%emt 0:00:00]} 55. Qe5+ {[%emt 0:00:00]} Kh6 {[%emt 0:00:00]} 56. Qd5 {[%emt 0:00:00]} Qb6 {[%emt 0:00:00]} 57. e5 {[%emt 0:00:00]} b4 {[%emt 0:00:00]} 58. e6 {[%emt 0:00:00]} Qc7 {[%emt 0:00:00]} 59. Qd2+ {[%emt 0:00:00]} 1-0

[Event "Biel Master Tournament 2019"]
[Site "Biel"]
[Date "2019.07.26"]
[Round "5.14"]
[White "Saravanan, Venkatachalam"]
[Black "Shchekachev, Andrei"]
[Result "1/2-1/2"]
[ECO "B37"]
[WhiteElo "2332"]
[BlackElo "2531"]
[Annotator "ChessBase"]
[PlyCount "68"]
[EventDate "2019.07.20"]
[EventType "swiss"]
[EventCountry "SUI"]
[SourceTitle "playchess.com"]
[Source "ChessBase"]
[SourceQuality "1"]
[TimeControl "40/5400+30:1800+30"]

1. Nf3 {[%emt 0:00:00]} g6 {[%emt 0:08:30]} 2. c4 {[%emt 0:00:00]} Bg7 {[%emt 0:01:33]} 3. Nc3 {[%emt 0:00:00]} c5 {[%emt 0:01:01]} 4. d4 {[%emt 0:00:00]} cxd4 {[%emt 0:00:09]} 5. Nxd4 {[%emt 0:00:05]} Nc6 {[%emt 0:00:15]} 6. Nc2 {[%emt 0:00:07]} Bxc3+ {[%emt 0:02:14]} 7. bxc3 {[%emt 0:00:05]} Qa5 {[%emt 0:04:46]} 8. e4 {[%emt 0:00:09]} Nf6 {[%emt 0:03:45]} 9. f3 {[%emt 0:00:20]} d6 {[%emt 0:01:41]} 10. Bd2 {[%emt 0:07:24]} Be6 {[%emt 0:05:27]} 11. Nd4 {[%emt 0:02:00]} Rc8 {[%emt 0:06:47]} 12. Be2 {[%emt 0:14:18]} O-O {[%emt 0:11:36]} 13. Nxe6 {[%emt 0:05:23]} fxe6 {[%emt 0:00:07]} 14. O-O {[%emt 0:00:06]} Qc5+ {[%emt 0:05:35]} 15. Kh1 {[%emt 0:00:06]} Ne5 {[%emt 0:03:57]} 16. Rb1 {[%emt 0:04:02]} Nxc4 {[%emt 0:04:14]} 17. Bxc4 {[%emt 0:09:58]} Qxc4 {[%emt 0:00:06]} 18. Rxb7 {[%emt 0:00:07]} Rfe8 {[%emt 0:12:17]} 19. Rxa7 {[%emt 0:04:01]} Ra8 {[%emt 0:00:06]} 20. Rb7 {[%emt 0:05:08]} Rxa2 {[%emt 0:02:26]} 21. Rb4 {[%emt 0:00:39]} Qd3 {[%emt 0:07:07]} 22. Rd4 {[%emt 0:00:04]} Qc2 {[%emt 0:00:21]} 23. Qxc2 {[%emt 0:07:00]} Rxc2 {[%emt 0:00:07]} 24. Rc1 {[%emt 0:00:13]} Rxc1+ {[%emt 0:00:36]} 25. Bxc1 {[%emt 0:00:04]} e5 {[%emt 0:00:06]} 26. Rd1 {[%emt 0:01:56]} Rc8 {[%emt 0:01:51]} 27. Bd2 {[%emt 0:00:07]} Nd7 {[%emt 0:00:43]} 28. Kg1 {[%emt 0:00:16]} Kf7 {[%emt 0:00:51]} 29. Kf2 {[%emt 0:00:13]} Ra8 {[%emt 0:00:54]} 30. Be3 {[%emt 0:03:52]} Ra3 {[%emt 0:00:30]} 31. Rd3 {[%emt 0:00:23]} Ke6 {[%emt 0:02:29]} 32. Bc1 {[%emt 0:05:07]} Ra2+ {[%emt 0:01:47]} 33. Rd2 {[%emt 0:00:20]} Ra1 {[%emt 0:00:37]} 34. Rc2 {[%emt 0:00:13]} Nc5 {[%emt 0:02:20]} 1/2-1/2

[Event "Biel Master Tournament 2019"]
[Site "Biel"]
[Date "2019.07.26"]
[Round "5.16"]
[White "Vaibhav, Suri"]
[Black "Omar, Noaman"]
[Result "1-0"]
[ECO "C18"]
[WhiteElo "2591"]
[BlackElo "2369"]
[Annotator "ChessBase"]
[PlyCount "83"]
[EventDate "2019.07.20"]
[EventType "swiss"]
[EventCountry "SUI"]
[SourceTitle "playchess.com"]
[Source "ChessBase"]
[SourceQuality "1"]
[TimeControl "40/5400+30:1800+30"]

1. e4 {[%emt 0:00:00]} e6 {[%emt 0:00:00]} 2. d4 {[%emt 0:00:00]} d5 {[%emt 0:00:00]} 3. Nc3 {[%emt 0:00:29]} Bb4 {[%emt 0:00:05]} 4. e5 {[%emt 0:00:07]} c5 {[%emt 0:00:06]} 5. a3 {[%emt 0:00:03]} Bxc3+ {[%emt 0:00:14]} 6. bxc3 {[%emt 0:00:02]} Qa5 {[%emt 0:00:13]} 7. Bd2 {[%emt 0:00:11]} Qa4 {[%emt 0:00:04]} 8. Qg4 {[%emt 0:00:17]} Kf8 {[%emt 0:00:26]} 9. h4 {[%emt 0:00:31]} Nc6 {[%emt 0:05:57]} 10. h5 {[%emt 0:00:23]} h6 {[%emt 0:01:06]} 11. Qd1 {[%emt 0:17:09]} b6 {[%emt 0:05:31]} 12. Nf3 {[%emt 0:03:30]} Ba6 {[%emt 0:01:48]} 13. Bxa6 {[%emt 0:06:58]} Qxa6 {[%emt 0:00:05]} 14. dxc5 {[%emt 0:00:08]} bxc5 {[%emt 0:00:57]} 15. Qe2 {[%emt 0:00:17]} c4 {[%emt 0:24:11]} 16. a4 {[%emt 0:08:26]} Rb8 {[%emt 0:01:38]} 17. O-O {[%emt 0:07:37]} Nge7 {[%emt 0:03:14]} 18. Nh4 {[%emt 0:17:26]} Ke8 {[%emt 0:13:37]} 19. Bc1 {[%emt 0:06:27]} Qa5 {[%emt 0:01:56]} 20. Qe3 {[%emt 0:01:12]} Rd8 {[%emt 0:08:32]} 21. Rd1 {[%emt 0:11:36]} d4 {[%emt 0:11:34]} 22. cxd4 {[%emt 0:00:34]} Nd5 {[%emt 0:00:28]} 23. Qe4 {[%emt 0:01:04]} Ncb4 {[%emt 0:01:35]} 24. Ba3 {[%emt 0:05:58]} Qc7 {[%emt 0:03:47]} 25. Bxb4 {[%emt 0:02:19]} Nxb4 {[%emt 0:00:04]} 26. Nf3 {[%emt 0:01:56]} Nd5 {[%emt 0:00:44]} 27. Rdb1 {[%emt 0:01:54]} Qd7 {[%emt 0:02:29]} 28. Qg4 {[%emt 0:01:09]} Rg8 {[%emt 0:01:12]} 29. Rb5 {[%emt 0:00:16]} a6 {[%emt 0:01:22]} 30. Rc5 {[%emt 0:00:47]} c3 {[%emt 0:02:05]} 31. a5 {[%emt 0:00:58]} Rb8 {[%emt 0:00:53]} 32. Ne1 {[%emt 0:00:21]} g6 {[%emt 0:00:23]} 33. Nd3 {[%emt 0:00:47]} Kf8 {[%emt 0:00:18]} 34. hxg6 {[%emt 0:02:15]} Rxg6 {[%emt 0:00:03]} 35. Qf3 {[%emt 0:00:28]} Kg7 {[%emt 0:01:29]} 36. Nf4 {[%emt 0:01:39]} Nxf4 {[%emt 0:00:06]} 37. Qxf4 {[%emt 0:00:01]} Rb4 {[%emt 0:01:16]} 38. Rd1 {[%emt 0:00:45]} Qb7 {[%emt 0:00:22]} 39. g3 {[%emt 0:00:35]} Rb1 {[%emt 0:00:29]} 40. Rxb1 {[%emt 0:00:55]} Qxb1+ {[%emt 0:00:04]} 41. Kg2 {[%emt 0:30:32]} Qb7+ {[%emt 0:31:58]} 42. Qf3 {[%emt 0:00:00]} 1-0

[Event "Biel Master Tournament 2019"]
[Site "Biel"]
[Date "2019.07.26"]
[Round "5.17"]
[White "Wong, Jianwen"]
[Black "Sedlak, Nikola"]
[Result "1-0"]
[ECO "A26"]
[WhiteElo "2301"]
[BlackElo "2586"]
[Annotator "ChessBase"]
[PlyCount "83"]
[EventDate "2019.07.20"]
[EventType "swiss"]
[EventCountry "SUI"]
[SourceTitle "playchess.com"]
[Source "ChessBase"]
[SourceQuality "1"]
[TimeControl "40/5400+30:1800+30"]

1. c4 {[%emt 0:02:10]} e5 {[%emt 0:00:00]} 2. g3 {[%emt 0:00:29]} Nc6 {[%emt 0:00:00]} 3. Nc3 {[%emt 0:00:05]} g6 {[%emt 0:00:16]} 4. Bg2 {[%emt 0:00:10]} Bg7 {[%emt 0:00:23]} 5. d3 {[%emt 0:00:20]} d6 {[%emt 0:00:14]} 6. e4 {[%emt 0:00:17]} Nd4 {[%emt 0:00:40]} 7. Nge2 {[%emt 0:02:08]} Nxe2 {[%emt 0:00:14]} 8. Qxe2 {[%emt 0:01:49]} Ne7 {[%emt 0:00:13]} 9. O-O {[%emt 0:03:35]} Nc6 {[%emt 0:01:26]} 10. Be3 {[%emt 0:03:53]} O-O {[%emt 0:06:24]} 11. Qd2 {[%emt 0:03:08]} Be6 {[%emt 0:01:39]} 12. Nd5 {[%emt 0:06:37]} Nd4 {[%emt 0:02:31]} 13. Bxd4 {[%emt 0:04:14]} exd4 {[%emt 0:00:10]} 14. f4 {[%emt 0:08:41]} c6 {[%emt 0:16:07]} 15. f5 {[%emt 0:01:08]} gxf5 {[%emt 0:08:46]} 16. exf5 {[%emt 0:01:07]} Bxd5 {[%emt 0:00:15]} 17. cxd5 {[%emt 0:00:12]} c5 {[%emt 0:00:28]} 18. f6 {[%emt 0:01:23]} Bxf6 {[%emt 0:00:06]} 19. Rf5 {[%emt 0:02:18]} Be5 {[%emt 0:00:21]} 20. Re1 {[%emt 0:04:30]} f6 {[%emt 0:04:38]} 21. Re4 {[%emt 0:00:59]} Rc8 {[%emt 0:01:17]} 22. Rh4 {[%emt 0:15:55]} Rc7 {[%emt 0:01:24]} 23. Be4 {[%emt 0:00:26]} Rff7 {[%emt 0:00:31]} 24. Rfh5 {[%emt 0:04:33]} Rg7 {[%emt 0:02:07]} 25. Qg2 {[%emt 0:09:43]} Rce7 {[%emt 0:01:19]} 26. Qh3 {[%emt 0:00:53]} Qd7 {[%emt 0:01:42]} 27. Bf5 {[%emt 0:02:31]} Qc7 {[%emt 0:03:13]} 28. Qf1 {[%emt 0:02:44]} Kf8 {[%emt 0:06:49]} 29. Be6 {[%emt 0:03:31]} Ke8 {[%emt 0:05:09]} 30. Bf5 {[%emt 0:04:32]} Kd8 {[%emt 0:01:43]} 31. Kg2 {[%emt 0:06:15]} Qa5 {[%emt 0:01:16]} 32. a3 {[%emt 0:00:27]} Bxg3 {[%emt 0:06:50]} 33. hxg3 {[%emt 0:00:08]} Qd2+ {[%emt 0:00:06]} 34. Kh3 {[%emt 0:00:31]} Re1 {[%emt 0:04:38]} 35. Qg2 {[%emt 0:00:51]} Re2 {[%emt 0:08:45]} 36. Qg1 {[%emt 0:00:05]} Re1 {[%emt 0:03:08]} 37. Qg2 {[%emt 0:00:01]} Qe3 {[%emt 0:04:20]} 38. Rg4 {[%emt 0:02:50]} Rg1 {[%emt 0:08:16]} 39. Rxg7 {[%emt 0:01:13]} Rxg2 {[%emt 0:00:08]} 40. Rhxh7 {[%emt 0:00:07]} Rh2+ {[%emt 0:00:14]} 41. Kxh2 {[%emt 0:30:10]} Qf2+ {[%emt 0:30:16]} 42. Kh3 {[%emt 0:01:12]} 1-0